bitfinex/quotes_SOLUSD_20250414
["timestamp","ask_amount","ask_price","bid_price","bid_amount"]
[1744673478339,0.03,130.03,129.99,17.6890114]
[1744673479045,0.03,130.03,130.0,10.54179856]
[1744673479732,0.03,130.03,130.0,7.692]
[1744673483750,0.03,130.03,129.99,9.9962114]
[1744673483942,10.0262114,130.03,129.99,17.6890114]
[1744673484141,10.0262114,130.03,129.99,7.6928]
[1744673484342,9.9962114,130.0,129.95,10.56]
[1744673484541,9.9962114,130.0,129.96,2.85236617]
[1744673485130,17.6890114,129.99,129.96,2.85236617]
[1744673485631,17.6890114,129.99,129.95,10.56]
[1744673485831,9.9962114,129.98,129.95,10.56]
[1744673487243,17.6890114,129.99,129.95,10.56]
[1744673488264,17.6890114,129.99,129.95,20.5562114]
[1744673488756,7.6917,130.01,129.97,9.9962114]
[1744673488926,0.03,130.03,130.0,9.9962114]
[1744673489132,0.03,130.03,130.01,17.6877114]
[1744673489836,0.03,130.03,130.02,49.981057]
[1744673490037,0.03,130.03,130.02,68.77286743]
[1744673490244,0.03,130.04,130.03,28.78802183]
[1744673490641,0.03,130.04,130.03,9.9962114]
[1744673491054,0.03,130.04,130.03,12.84060961]
[1744673491234,0.03,130.04,130.03,26.13304599]
[1744673494053,0.03,130.04,130.03,44.92485642]
[1744673494656,0.03,130.04,130.03,45.35134113]
[1744673496264,0.03,130.04,130.03,51.40954113]
[1744673497349,0.03,130.06,130.05,0.42648471]
[1744673497553,0.03,130.06,130.05,26.58463249]
[1744673497744,0.03,130.06,130.05,29.4290307]
[1744673498067,0.0001,130.06,130.05,48.22084113]
[1744673498267,0.063,130.12,130.08,44.79181043]
[1744673498567,0.063,130.12,130.08,83.67560599]
[1744673499058,0.063,130.12,130.08,23.28564778]
[1744673500666,0.063,130.12,130.08,15.59814778]
[1744673500866,15.66114778,130.12,130.08,15.59814778]
[1744673501162,15.66114778,130.12,130.07,15.59814778]
[1744673501546,15.59814778,130.11,130.06,15.59814778]
[1744673502464,7.6863,130.1,130.06,15.59814778]
[1744673503164,0.063,130.12,130.07,15.59814778]
[1744673503374,7.7485,130.12,130.08,15.59814778]
[1744673503854,7.6859,130.11,130.08,15.59814778]
[1744673504252,15.77030935,130.09,130.0,7.6923]
[1744673504574,15.62814778,130.09,130.04,23.28784778]
[1744673505078,23.31514778,130.09,130.04,15.59814778]
[1744673505670,15.59814778,130.07,130.03,15.59814778]
[1744673505973,15.59814778,130.05,130.01,45.59814778]
[1744673506156,15.59814778,130.05,130.01,30.0]
[1744673506355,15.59814778,130.05,130.0,15.59814778]
[1744673506657,7.6899,130.04,130.01,15.59814778]
[1744673507466,7.6899,130.04,130.0,15.59814778]
[1744673508269,15.59814778,130.05,130.0,15.59814778]
[1744673508270,7.6895,130.05,130.02,15.59814778]
[1744673509773,7.6881,130.07,130.02,15.59814778]
[1744673510074,23.28624778,130.07,130.02,15.59814778]
[1744673510259,15.59814778,130.05,130.01,15.59814778]
[1744673510876,15.59814778,130.05,130.0,15.59814778]
[1744673511276,7.6887,130.06,130.01,15.59814778]
[1744673511479,23.28684778,130.06,130.01,15.59814778]
[1744673511874,7.6887,130.06,130.01,15.59814778]
[1744673512079,23.28684778,130.06,130.02,15.59814778]
[1744673513776,15.59814778,130.03,129.99,10.54]
[1744673514359,17.13014778,130.04,129.99,26.13814778]
[1744673514900,7.6905,130.03,129.99,26.13814778]
[1744673516180,7.6905,130.03,129.99,33.83084778]
[1744673519283,15.59814778,130.06,130.01,15.59814778]
[1744673519461,7.6889,130.06,130.02,15.59814778]
[1744673519865,23.28704778,130.06,130.02,15.59814778]
[1744673520762,23.28704778,130.06,130.01,15.59814778]
[1744673521186,9.1885,130.07,130.03,15.59814778]
[1744673522189,24.78664778,130.07,130.03,15.59814778]
[1744673523487,9.1885,130.07,130.03,15.59814778]
[1744673524089,24.78664778,130.07,129.99,29.7712]
[1744673524276,24.78664778,130.07,130.02,15.59814778]
[1744673524787,15.59814778,130.06,130.01,15.59814778]
[1744673524995,7.6893,130.05,130.01,23.28974778]
[1744673525368,15.59814778,130.04,129.97,61.88811043]
[1744673525686,15.59814778,130.03,129.99,15.59814778]
[1744673526292,15.59814778,130.04,129.99,15.59814778]
[1744673526485,7.6905,130.03,129.99,15.59814778]
[1744673527387,23.28824778,130.04,129.99,23.29094778]
[1744673527687,15.59814778,130.06,130.01,15.59814778]
[1744673527996,9.1885,130.07,130.03,15.59814778]
[1744673528893,9.1885,130.07,130.02,15.59814778]
[1744673528894,24.78664778,130.07,130.02,15.59814778]
[1744673529203,15.59814778,130.05,130.0,15.59814778]
[1744673529408,15.59814778,130.04,129.99,15.59814778]
[1744673529698,15.59814778,130.03,129.99,15.59814778]
[1744673530179,15.59814778,130.04,129.99,15.59814778]
[1744673530370,7.6905,130.03,129.99,15.59814778]
[1744673530571,7.6905,130.03,129.99,23.29094778]
[1744673530791,15.59814778,130.02,129.98,10.54]
[1744673531499,15.59814778,130.01,129.98,10.54]
[1744673531667,17.26144778,130.01,129.98,10.54]
[1744673531987,15.59814778,130.0,129.97,0.063]
[1744673532794,1.6633,130.01,129.97,15.66114778]
[1744673533093,1.6633,130.01,129.98,15.59814778]
[1744673535970,18.933972,130.04,129.99,15.59814778]
[1744673535971,17.15874778,130.04,129.99,15.59814778]
[1744673536488,1.5606,130.04,129.99,15.59814778]
[1744673536694,15.59814778,130.03,129.99,15.59814778]
[1744673536995,15.59814778,130.03,129.98,23.29144778]
[1744673537694,23.28914778,130.03,129.98,23.29144778]
[1744673538795,15.59814778,130.01,129.97,23.35494778]
[1744673539379,1.5606,130.04,129.97,23.35494778]
[1744673539699,23.28884778,130.03,129.98,15.59814778]
[1744673540899,15.59814778,130.02,129.98,23.29154778]
[1744673541191,15.59814778,130.02,129.97,7.7567]
[1744673541402,15.59814778,130.0,129.97,0.063]
[1744673541582,15.59814778,129.99,129.97,0.063]
[1744673543495,23.29114778,129.99,129.97,0.063]
[1744673546109,17.36620935,129.98,129.97,0.063]
[1744673546308,36.44234292,129.98,129.97,0.063]
[1744673546614,0.28432314,129.97,129.94,0.063]
[1744673546779,15.59814778,129.95,129.94,0.063]
[1744673547994,34.81644292,129.95,129.94,0.063]
[1744673548219,42.51164292,129.95,129.94,0.063]
[1744673549315,0.42648471,129.94,129.93,0.063]
[1744673549606,26.28432314,129.91,129.89,0.03]
[1744673549792,41.59814778,129.9,129.89,0.03]
[1744673549987,76.4145907,129.9,129.89,0.03]
[1744673550418,0.42648471,129.89,129.86,0.063]
[1744673550586,60.38995821,129.87,129.86,0.063]
[1744673551287,68.08995821,129.87,129.86,0.063]
[1744673552800,69.73965821,129.87,129.86,0.063]
[1744673554405,35.3497,129.87,129.86,0.063]
[1744673554619,70.16614292,129.87,129.86,0.063]
[1744673556222,15.59814778,129.87,129.86,0.063]
[1744673556402,15.59814778,129.9,129.86,0.063]
[1744673556603,26.30030935,129.92,129.87,15.59814778]
[1744673556908,15.59814778,129.92,129.88,15.59814778]
[1744673557121,15.59814778,129.93,129.89,15.59814778]
[1744673557810,17.12064778,129.94,129.89,15.59814778]
[1744673558002,96.39814778,129.95,129.9,15.59814778]
[1744673558320,80.8,129.95,129.92,15.59814778]
[1744673558491,104.09344778,129.95,129.9,15.59814778]
[1744673558892,96.39814778,129.95,129.91,15.59814778]
[1744673559094,80.8,129.95,129.92,15.59814778]
[1744673559305,96.39814778,129.95,129.91,15.59814778]
[1744673559520,15.59814778,129.94,129.9,7.698]
[1744673559949,96.39814778,129.95,129.9,23.29614778]
[1744673560518,104.09344778,129.95,129.9,23.29614778]
[1744673561219,96.39814778,129.95,129.9,23.29614778]
[1744673561409,80.8,129.95,129.92,15.59814778]
[1744673561611,80.8,129.95,129.91,15.59814778]
[1744673561921,23.29304778,129.96,129.91,15.59814778]
[1744673562226,15.59814778,129.96,129.91,15.59814778]
[1744673563622,15.59814778,129.96,129.92,23.29514778]
[1744673563822,15.59814778,129.98,129.93,15.59814778]
[1744673564727,23.29064778,130.0,129.95,15.59814778]
[1744673565401,23.29004778,130.01,129.96,15.59814778]
[1744673565601,23.29004778,130.01,129.97,7.694]
[1744673566419,23.29004778,130.01,129.96,23.29254778]
[1744673566800,15.59814778,130.0,129.95,15.59814778]
[1744673567002,15.59814778,129.99,129.94,27.76024778]
[1744673568026,15.59814778,129.99,129.94,35.45584778]
[1744673568231,41.59814778,130.01,129.96,15.59814778]
[1744673569516,41.59814778,130.01,129.96,23.29234778]
[1744673570432,49.28994778,130.01,129.96,23.29234778]
[1744673570834,49.28994778,130.01,129.95,10.56]
[1744673570835,15.59814778,130.0,129.95,26.15814778]
[1744673571022,15.59814778,129.99,129.95,10.56]
[1744673571333,15.59814778,130.0,129.95,33.85314778]
[1744673571512,49.28994778,130.01,129.96,15.59814778]
[1744673572431,49.28994778,130.01,129.96,23.29224778]
[1744673573235,15.59814778,130.0,129.96,7.6941]
[1744673573738,23.29044778,130.0,129.96,7.6941]
[1744673575311,33.6919,130.01,129.96,7.6941]
[1744673575518,15.66114778,130.03,129.97,15.59814778]
[1744673575724,15.66114778,130.03,129.98,15.59814778]
[1744673576539,23.35184778,130.03,129.98,15.59814778]
[1744673576718,23.35184778,130.03,129.98,23.29124778]
[1744673577134,0.063,130.03,129.99,15.59814778]
[1744673577929,15.59814778,130.02,129.98,6.6346]
[1744673578434,7.7536,130.03,129.95,33.85324778]
[1744673578435,15.59814778,130.0,129.95,33.85324778]
[1744673578617,15.59814778,129.97,129.95,10.56]
[1744673578818,15.59814778,129.97,129.93,7.6963]
[1744673579644,23.29224778,129.97,129.93,7.6963]
[1744673580726,15.59814778,129.95,129.91,32.66994778]
[1744673580919,15.59814778,129.95,129.91,17.0718]
[1744673581120,15.59814778,129.95,129.91,24.7693]
[1744673581944,23.29224778,129.97,129.92,15.59814778]
[1744673582746,15.59814778,129.95,129.91,17.0718]
[1744673583042,15.59814778,129.94,129.91,10.56]
[1744673583215,15.59814778,129.93,129.91,10.56]
[1744673584145,23.29424778,129.94,129.91,10.56]
[1744673584357,7.6934,129.98,129.93,15.59814778]
[1744673584639,23.29154778,129.98,129.91,18.2575]
[1744673584828,23.29154778,129.98,129.93,15.59814778]
[1744673585246,15.59814778,129.97,129.92,15.59814778]
[1744673586146,23.29234778,129.97,129.92,23.29464778]
[1744673586841,15.59814778,129.96,129.92,23.29464778]
[1744673587046,15.59814778,129.96,129.92,7.6965]
[1744673587355,15.59814778,129.94,129.91,10.56]
[1744673587521,15.59814778,129.93,129.91,10.56]
[1744673588349,15.59814778,129.96,129.91,33.85554778]
[1744673588350,15.59814778,129.95,129.91,33.85554778]
[1744673588524,15.59814778,129.96,129.92,15.59814778]
[1744673588731,15.59814778,129.96,129.91,33.85554778]
[1744673589146,25.00803124,129.96,129.91,43.26543124]
[1744673589531,32.70323124,129.95,129.91,18.2574]
[1744673592148,25.00803124,129.95,129.91,18.2574]
[1744673592451,7.6949,129.96,129.91,18.2574]
[1744673592452,32.70293124,129.96,129.91,43.26543124]
[1744673593059,32.70293124,129.96,129.91,18.2574]
[1744673593226,32.70293124,129.96,129.91,43.26543124]
[1744673593427,32.70293124,129.96,129.91,10.56]
[1744673593428,25.00803124,129.94,129.91,10.56]
[1744673594129,25.00803124,129.92,129.87,32.86853124]
[1744673594364,25.00803124,129.91,129.87,32.86853124]
[1744673594662,25.00803124,129.91,129.87,15.5601]
[1744673595472,32.70573124,129.91,129.87,40.56813124]
[1744673595969,32.70573124,129.91,129.87,14.0422]
[1744673596154,25.00803124,129.9,129.86,18.3234]
[1744673596551,25.00803124,129.88,129.86,0.063]
[1744673597363,25.00803124,129.89,129.86,0.063]
[1744673598767,25.00803124,129.88,129.86,0.063]
[1744673599754,32.70783124,129.88,129.86,0.063]
[1744673599973,25.00803124,129.87,129.86,0.063]
[1744673600637,32.70783124,129.88,129.86,0.063]
[1744673600840,32.70683124,129.89,129.86,0.063]
[1744673601662,32.70643124,129.9,129.86,0.063]
[1744673601865,25.00803124,129.9,129.86,32.77163124]
[1744673602057,32.70603124,129.91,129.86,32.77163124]
[1744673602450,25.00803124,129.89,129.86,0.063]
[1744673603469,25.00803124,129.9,129.86,0.063]
[1744673603668,12.2027,129.93,129.88,25.00803124]
[1744673603867,32.70413124,129.94,129.89,25.00803124]
[1744673604050,25.00803124,129.94,129.9,25.00803124]
[1744673604250,0.063,129.95,129.91,25.00803124]
[1744673604575,0.063,129.95,129.92,25.00803124]
[1744673604868,0.063,129.95,129.9,10.56]
[1744673604869,0.063,129.95,129.93,25.00803124]
[1744673606072,0.063,129.95,129.93,32.70443124]
[1744673606263,0.063,129.95,129.92,32.70473124]
[1744673608967,0.063,129.95,129.93,25.00803124]
[1744673609151,0.063,129.95,129.92,32.70473124]
[1744673610450,0.063,129.95,129.91,32.70533124]
[1744673610775,25.00803124,129.93,129.88,32.70743124]
[1744673610950,25.00803124,129.92,129.88,7.6994]
[1744673611270,15.63838933,129.92,129.88,7.6994]
[1744673611773,15.63838933,129.91,129.86,17.0326]
[1744673611951,15.63838933,129.9,129.86,32.67098933]
[1744673612160,15.63838933,129.91,129.86,32.67098933]
[1744673613058,15.63838933,129.91,129.86,40.37118933]
[1744673613255,25.02368643,129.92,129.88,25.02368643]
[1744673613580,25.02368643,129.93,129.88,25.02368643]
[1744673614345,25.02368643,129.93,129.89,25.02368643]
[1744673614674,25.02368643,129.93,129.89,32.72198643]
[1744673614984,32.72018643,129.93,129.89,32.72198643]
[1744673615278,32.72018643,129.93,129.89,7.6983]
[1744673615476,25.02368643,129.92,129.88,32.72278643]
[1744673615779,25.02368643,129.92,129.88,7.6991]
[1744673615983,25.02368643,129.92,129.87,32.72338643]
[1744673616159,25.02368643,129.9,129.86,17.0326]
[1744673616363,25.02368643,129.91,129.86,49.75648643]
[1744673616565,25.02368643,129.92,129.88,25.02368643]
[1744673617076,25.02368643,129.92,129.87,25.02368643]
[1744673617877,32.72098643,129.92,129.87,32.72328643]
[1744673619184,32.72098643,129.92,129.86,17.0326]
[1744673619185,25.02368643,129.91,129.86,49.75658643]
[1744673619680,25.02368643,129.9,129.86,24.7329]
[1744673620078,32.72198643,129.9,129.86,24.7329]
[1744673620582,32.72158643,129.91,129.86,49.75658643]
[1744673620766,32.72098643,129.92,129.87,25.02368643]
[1744673621178,7.696,129.94,129.88,25.02368643]
[1744673621361,25.02368643,129.93,129.89,25.02368643]
[1744673622376,25.02368643,129.93,129.89,32.72228643]
[1744673622980,32.72018643,129.93,129.89,7.6986]
[1744673623279,32.72018643,129.93,129.88,32.72278643]
[1744673624280,25.08668643,129.95,129.9,25.02368643]
[1744673624488,0.063,129.95,129.91,32.72078643]
[1744673625278,32.78208643,129.95,129.91,32.72078643]
[1744673625882,32.78208643,129.95,129.91,25.02368643]
[1744673626097,25.02368643,129.94,129.9,32.72158643]
[1744673626386,25.02368643,129.94,129.9,7.6979]
[1744673626559,32.71978643,129.94,129.9,7.6979]
[1744673626761,32.71978643,129.94,129.9,32.72158643]
[1744673627766,25.02368643,129.94,129.9,32.72158643]
[1744673628872,32.71968643,129.94,129.9,32.72158643]
[1744673629763,32.71968643,129.94,129.89,32.72218643]
[1744673633192,32.71968643,129.94,129.89,15.63431408]
[1744673633193,23.33031408,129.94,129.89,15.63431408]
[1744673633598,15.63431408,129.94,129.89,15.63431408]
[1744673633895,0.063,129.95,129.91,15.63431408]
[1744673634074,0.063,129.95,129.92,15.63431408]
[1744673635171,0.063,129.95,129.92,23.33071408]
[1744673636288,0.063,129.95,129.91,33.89161408]
[1744673637207,0.063,129.95,129.92,15.63431408]
[1744673637806,0.063,129.95,129.93,7.6964]
[1744673639502,0.063,129.95,129.92,7.6967]
[1744673639885,0.063,129.95,129.92,23.33101408]
[1744673641794,0.063,129.95,129.94,15.63431408]
[1744673642171,0.063,129.95,129.94,34.42612451]
[1744673642372,0.063,129.95,129.94,34.85260922]
[1744673642572,0.063,129.95,129.94,15.63431408]
[1744673643697,0.063,129.95,129.94,42.12192451]
[1744673645899,0.063,129.95,129.94,23.33011408]
[1744673646087,0.063,129.95,129.93,23.33041408]
[1744673646397,0.063,129.95,129.94,15.63431408]
[1744673647402,0.063,129.95,129.94,23.33011408]
[1744673650311,0.063,129.95,129.94,15.63431408]
[1744673650597,0.063,129.95,129.94,23.33011408]
[1744673651178,0.063,129.95,129.94,42.12192451]
[1744673651801,0.063,129.95,129.94,42.54840922]
[1744673654604,0.063,129.97,129.96,26.42648471]
[1744673654818,0.063,129.97,129.96,52.17431408]
[1744673654988,0.063,129.97,129.96,70.96612451]
[1744673656795,0.063,129.97,129.96,78.66072451]
[1744673657294,0.063,129.97,129.96,94.7215233]
[1744673658690,0.063,129.97,129.96,137.7548233]
[1744673659305,0.063,129.97,129.96,121.69402451]
[1744673659618,0.063,129.97,129.95,7.6949]
[1744673659796,0.063,129.97,129.94,7.6956]
[1744673659996,15.63431408,129.95,129.93,10.54]
[1744673660186,26.0,129.93,129.89,10.54]
[1744673660387,15.63431408,129.92,129.89,10.54]
[1744673660589,15.63431408,129.9,129.89,10.54]
[1744673660911,15.63431408,129.9,129.86,263.35751408]
[1744673660912,15.63431408,129.91,129.87,23.33421408]
[1744673661213,24.92661408,129.92,129.87,23.33421408]
[1744673661391,17.22961408,129.92,129.87,23.33421408]
[1744673661589,24.92671408,129.92,129.87,23.33421408]
[1744673661813,15.63431408,129.91,129.87,23.33421408]
[1744673663108,23.33191408,129.91,129.86,247.7234]
[1744673663313,23.33191408,129.91,129.86,23.39771408]
[1744673663314,15.63431408,129.9,129.86,23.39771408]
[1744673663497,17.22961408,129.92,129.88,15.63431408]
[1744673663697,15.63431408,129.91,129.86,23.39771408]
[1744673665021,23.33241408,129.91,129.86,23.39771408]
[1744673665207,15.63431408,129.89,129.86,0.063]
[1744673667907,23.33301408,129.9,129.86,0.063]
[1744673668694,1.5953,129.92,129.86,15.69731408]
[1744673668892,17.22961408,129.92,129.88,15.63431408]
[1744673669598,24.92691408,129.92,129.88,15.63431408]
[1744673669914,1.5953,129.92,129.88,23.33341408]
[1744673671211,1.5953,129.92,129.89,15.63431408]
[1744673671608,1.5953,129.92,129.89,23.33291408]
[1744673672417,1.5953,129.92,129.88,23.33361408]
[1744673675217,1.6005,129.95,129.89,15.63431408]
[1744673675418,0.063,129.97,129.93,15.63431408]
[1744673675615,0.063,129.97,129.94,15.63431408]
[1744673675791,0.063,129.97,129.95,15.63431408]
[1744673676898,0.063,129.97,129.95,23.32941408]
[1744673678211,0.063,129.97,129.94,15.63431408]
[1744673679225,0.063,129.97,129.94,12.49805461]
[1744673681027,0.063,129.97,129.93,20.19405461]
[1744673681323,0.063,129.97,129.94,12.49805461]
[1744673684409,0.063,129.97,129.94,20.19429697]
[1744673687829,0.063,129.97,129.94,7.6957]
[1744673688831,0.063,129.97,129.93,20.19469697]
[1744673689128,0.063,129.97,129.94,12.49859697]
[1744673689915,0.063,129.97,129.94,20.19399697]
[1744673690823,0.063,129.97,129.94,12.49859697]
[1744673691020,12.56159697,129.97,129.93,20.19469697]
[1744673693126,0.063,129.97,129.93,20.19469697]
[1744673693534,7.7572,129.97,129.93,20.19469697]
[1744673699635,7.7572,129.97,129.93,12.49859697]
[1744673700529,12.49859697,129.96,129.92,10.6]
[1744673700736,12.49859697,129.95,129.9,12.49859697]
[1744673700952,12.49859697,129.93,129.89,12.49859697]
[1744673701235,15.70290958,129.92,129.88,10.54]
[1744673701441,8.00590958,129.91,129.87,0.03]
[1744673701810,8.00590958,129.91,129.87,7.7299]
[1744673702024,8.00590958,129.91,129.87,0.03]
[1744673702948,8.00590958,129.91,129.87,15.73570958]
[1744673703241,12.51176448,129.91,129.87,20.24156448]
[1744673703433,12.51176448,129.92,129.87,20.24156448]
[1744673704247,12.51176448,129.93,129.89,12.51176448]
[1744673704544,1.6613,129.96,129.92,12.51176448]
[1744673704842,0.063,129.97,129.95,12.51176448]
[1744673705143,0.063,129.97,129.96,12.51176448]
[1744673705532,0.063,129.97,129.96,20.20636448]
[1744673706643,0.063,129.97,129.92,53.5933]
[1744673706832,12.51176448,129.96,129.92,12.51176448]
[1744673707317,12.57476448,129.97,129.92,12.51176448]
[1744673707931,20.20636448,129.96,129.92,12.51176448]
[1744673708335,0.063,129.97,129.93,12.51176448]
[1744673708645,0.063,129.97,129.92,7.697]
[1744673708646,0.063,129.97,129.95,12.51176448]
[1744673708943,0.063,129.97,129.92,7.697]
[1744673708944,7.7571,129.97,129.94,12.51176448]
[1744673709129,0.063,129.97,129.94,12.51176448]
[1744673709845,0.063,129.97,129.94,20.20726448]
[1744673710228,0.063,129.97,129.96,12.51176448]
[1744673711339,0.063,129.97,129.96,20.20636448]
[1744673712040,0.063,129.97,129.95,12.51176448]
[1744673712944,0.063,129.97,129.94,30.76736448]
[1744673713732,0.063,129.97,129.95,12.51176448]
[1744673714445,0.063,129.97,129.95,20.20676448]
[1744673715939,0.063,129.97,129.95,12.51176448]
[1744673716138,0.063,129.97,129.94,23.07176448]
[1744673716339,0.063,129.97,129.94,10.56]
[1744673716845,12.57476448,129.97,129.94,10.56]
[1744673717442,0.063,129.97,129.93,20.20806448]
[1744673717745,0.063,129.97,129.94,12.51176448]
[1744673717943,0.063,129.97,129.95,12.51176448]
[1744673718952,0.063,129.97,129.94,20.20716448]
[1744673719150,0.063,129.97,129.95,12.51176448]
[1744673719854,0.063,129.97,129.95,20.20656448]
[1744673720460,0.063,129.97,129.96,12.51176448]
[1744673720829,0.063,129.97,129.96,23.05176448]
[1744673723062,0.063,129.97,129.96,10.54]
[1744673724861,0.063,129.97,129.96,30.74636448]
[1744673725867,0.063,129.97,129.96,92.57147491]
[1744673726731,0.063,129.97,129.96,105.5097241]
[1744673729070,0.063,130.01,130.0,12.51176448]
[1744673729245,0.063,130.01,130.0,31.73005962]
[1744673729437,0.063,130.03,130.01,0.42648471]
[1744673729764,0.063,130.03,130.02,41.84357491]
[1744673730462,0.063,130.08,130.04,7.6899]
[1744673730761,12.57476448,130.08,130.03,7.6903]
[1744673730970,12.57476448,130.06,130.02,93.54]
[1744673731937,12.57476448,130.06,130.02,101.2309]
[1744673732361,0.063,130.06,130.02,113.74266448]
[1744673732653,0.063,130.06,130.03,12.51176448]
[1744673732858,0.063,130.06,130.05,12.51176448]
[1744673734557,0.063,130.06,130.05,20.20106448]
[1744673734948,0.063,130.06,130.02,144.07137491]
[1744673734949,0.063,130.06,130.04,7.6896]
[1744673735262,0.063,130.06,130.05,12.51176448]
[1744673736465,0.063,130.06,130.05,20.20106448]
[1744673737347,0.063,130.06,130.05,121.99287491]
[1744673739167,0.063,130.06,130.05,83.0]
[1744673739366,0.063,130.06,130.03,20.20186448]
[1744673739574,0.063,130.06,130.05,12.51176448]
[1744673739863,0.063,130.06,130.05,12.65392605]
[1744673740764,0.063,130.06,130.05,12.51176448]
[1744673740970,0.063,130.06,130.04,7.6896]
[1744673741341,0.063,130.06,130.04,20.20136448]
[1744673741768,0.063,130.06,130.03,20.20196448]
[1744673741947,0.063,130.06,130.03,7.6902]
[1744673742147,0.063,130.06,130.03,20.20196448]
[1744673742347,0.063,130.06,130.04,12.51176448]
[1744673742767,0.063,130.06,130.04,20.20146448]
[1744673743361,0.063,130.06,130.05,12.51176448]
[1744673743865,0.063,130.06,130.05,114.30357491]
[1744673744953,0.063,130.06,130.05,121.99287491]
[1744673747876,0.063,130.06,130.05,103.20106448]
[1744673749162,0.063,130.06,130.05,90.6893]
[1744673749362,0.063,130.06,130.05,103.20106448]
[1744673752579,0.063,130.06,130.05,20.20106448]
[1744673757087,0.063,130.06,130.05,7.6893]
[1744673758785,0.063,130.06,130.05,20.20106448]
[1744673761080,0.063,130.06,130.05,38.99287491]
[1744673763390,0.063,130.06,130.05,12.51176448]
[1744673763577,0.063,130.06,130.04,30.76136448]
[1744673764392,0.063,130.06,130.05,12.51176448]
[1744673764583,0.063,130.06,130.05,20.20106448]
[1744673766281,0.063,130.06,130.03,101.2902]
[1744673766482,12.57476448,130.06,130.03,10.6]
[1744673766788,20.26396448,130.06,130.03,10.6]
[1744673767190,12.51176448,130.04,129.99,83.0]
[1744673767386,12.51176448,130.02,129.97,113.86856448]
[1744673768368,20.20346448,130.02,129.97,113.86856448]
[1744673768994,12.51176448,129.98,129.97,10.663]
[1744673769179,12.51176448,129.98,129.97,0.063]
[1744673770793,20.20516448,129.98,129.97,0.063]
[1744673771095,12.51176448,129.98,129.97,0.063]
[1744673771302,1.6248,130.04,129.97,12.57476448]
[1744673771473,1.6248,130.04,129.99,12.51176448]
[1744673771474,14.13656448,130.04,129.99,12.51176448]
[1744673771671,1.6248,130.04,130.01,12.51176448]
[1744673772083,1.6248,130.04,130.0,12.51176448]
[1744673772699,1.6248,130.04,130.0,20.20376448]
[1744673772879,21.82656448,130.04,129.99,95.51176448]
[1744673773084,12.51176448,130.03,129.99,83.0]
[1744673773882,21.82656448,130.04,129.99,95.51176448]
[1744673774500,12.51176448,130.03,129.99,83.0]
[1744673774889,7.6911,130.02,129.99,83.0]
[1744673776076,7.6911,130.02,129.98,30.80506448]
[1744673777622,20.20256448,130.03,129.98,30.80506448]
[1744673778208,7.6908,130.03,129.99,12.51176448]
[1744673778409,1.6248,130.04,130.02,12.51176448]
[1744673778584,0.063,130.06,130.03,12.51176448]
[1744673778785,0.063,130.06,130.04,12.51176448]
[1744673779680,0.063,130.06,130.02,12.51176448]
[1744673780188,0.063,130.06,130.01,7.6917]
[1744673780391,0.063,130.06,130.02,12.51176448]
[1744673780594,12.51176448,130.04,129.99,95.51176448]
[1744673780793,12.51176448,130.04,129.99,12.51176448]
[1744673781417,12.51176448,130.04,129.99,20.20436448]
[1744673781613,20.20196448,130.04,129.99,20.20436448]
[1744673782117,20.20196448,130.04,129.98,18.2934]
[1744673782318,20.20196448,130.04,129.99,12.51176448]
[1744673783415,7.6894,130.05,130.01,12.51176448]
[1744673784419,12.51176448,130.05,130.01,12.51176448]
[1744673786893,20.20146448,130.05,130.01,12.51176448]
[1744673787717,20.20146448,130.05,130.0,7.6918]
[1744673788012,20.20146448,130.05,130.0,20.20356448]
[1744673788520,20.20146448,130.05,130.0,7.6918]
[1744673788701,20.20146448,130.05,130.0,20.20356448]
[1744673792721,12.51176448,130.04,129.99,12.51176448]
[1744673793023,7.6897,130.05,129.98,113.80496448]
[1744673793210,12.51176448,130.04,129.99,12.51176448]
[1744673793396,20.26376448,130.06,130.01,12.51176448]
[1744673794424,20.26376448,130.06,130.01,20.20306448]
[1744673795625,12.51176448,130.05,130.0,12.51176448]
[1744673796717,7.6899,130.04,130.0,12.51176448]
[1744673796924,20.20166448,130.04,129.98,106.11176448]
[1744673798430,20.20166448,130.04,129.98,113.80516448]